[Event "Titled Tuesday Blitz April 12 Early 2022"]
[White "Pesotskiy, Mikhail"]
[Black "Papadiamandis, Elliot"]
[WhiteFideId "34164453"]
[BlackFideId "36074160"]
[WhiteElo "2010"]
[BlackElo "2088"]
[Result "1/2-1/2"]
[Round "07"]
[TimeControl "180+1"]
[Date "2022.04.13"]
[WhiteClock "0:02:39"]
[BlackClock "0:01:59"]

1. d4 {[%clk 0:02:59]}  Nf6 {[%clk 0:02:59]} 2. c4 {[%clk 0:02:59]}  e6 {[%clk 0:02:59]} 3. Nc3 {[%clk 0:03:00]}  Bb4 {[%clk 0:02:57]} 4. Qc2 {[%clk 0:03:01]}  d5 {[%clk 0:02:58]} 5. a3 {[%clk 0:03:01]}  Bxc3+ {[%clk 0:02:57]} 6. Qxc3 {[%clk 0:03:02]}  O-O {[%clk 0:02:58]} 7. Bg5 {[%clk 0:03:01]}  h6 {[%clk 0:02:58]} 8. Bxf6 {[%clk 0:03:01]}  Qxf6 {[%clk 0:02:58]} 9. Nf3 {[%clk 0:03:01]}  Nc6 {[%clk 0:02:58]} 10. e3 {[%clk 0:03:01]}  Qg6 {[%clk 0:02:48]} 11. h3 {[%clk 0:02:41]}  Rd8 {[%clk 0:02:33]} 12. Nh4 {[%clk 0:02:37]}  Qf6 {[%clk 0:02:33]} 13. Nf3 {[%clk 0:02:37]}  Qg6 {[%clk 0:02:31]} 14. Nh4 {[%clk 0:02:38]}  Qe4 {[%clk 0:02:12]} 15. Nf3 {[%clk 0:02:39]}  Qg6 {[%clk 0:01:59]} 1/2-1/2


[Site "https://www.chess.com"]

[Event "Titled Tuesday Blitz April 12 Early 2022"]
[White "Pinheiro, Iung Alicio de O."]
[Black "Gallegos Diaz, Carlos Alberto"]
[WhiteFideId "2104350"]
[BlackFideId "3900886"]
[WhiteElo "2588"]
[BlackElo "2362"]
[Result "0-1"]
[Round "07"]
[TimeControl "180+1"]
[Date "2022.04.13"]
[WhiteClock "0:00:03"]
[BlackClock "0:00:22"]

1. c4 {[%clk 0:03:00]}  d6 {[%clk 0:01:56]} 2. g3 {[%clk 0:02:58]}  Nf6 {[%clk 0:01:57]} 3. Bg2 {[%clk 0:02:57]}  e5 {[%clk 0:01:58]} 4. Nc3 {[%clk 0:02:53]}  Be7 {[%clk 0:01:58]} 5. e4 {[%clk 0:02:47]}  O-O {[%clk 0:01:58]} 6. Nge2 {[%clk 0:02:48]}  Re8 {[%clk 0:01:58]} 7. O-O {[%clk 0:02:48]}  c6 {[%clk 0:01:58]} 8. d3 {[%clk 0:02:36]}  Nbd7 {[%clk 0:01:59]} 9. f4 {[%clk 0:02:35]}  a6 {[%clk 0:01:59]} 10. h3 {[%clk 0:02:33]}  b5 {[%clk 0:01:59]} 11. g4 {[%clk 0:02:19]}  b4 {[%clk 0:01:56]} 12. Na4 {[%clk 0:02:17]}  Bb7 {[%clk 0:01:48]} 13. f5 {[%clk 0:02:10]}  d5 {[%clk 0:01:34]} 14. Ng3 {[%clk 0:02:05]}  Nc5 {[%clk 0:01:29]} 15. g5 {[%clk 0:02:01]}  Nfd7 {[%clk 0:01:27]} 16. Nxc5 {[%clk 0:01:36]}  Bxc5+ {[%clk 0:01:26]} 17. Kh1 {[%clk 0:01:36]}  g6 {[%clk 0:01:26]} 18. h4 {[%clk 0:01:34]}  Nb6 {[%clk 0:01:18]} 19. Qf3 {[%clk 0:01:18]}  Qd7 {[%clk 0:01:13]} 20. h5 {[%clk 0:01:17]}  dxc4 {[%clk 0:01:10]} 21. dxc4 {[%clk 0:01:16]}  Rf8 {[%clk 0:01:00]} 22. b3 {[%clk 0:01:05]}  Bd4 {[%clk 0:00:50]} 23. Rb1 {[%clk 0:01:02]}  c5 {[%clk 0:00:50]} 24. Bh3 {[%clk 0:00:55]}  Nc8 {[%clk 0:00:43]} 25. Kg2 {[%clk 0:00:52]}  Qc7 {[%clk 0:00:40]} 26. hxg6 {[%clk 0:00:51]}  fxg6 {[%clk 0:00:39]} 27. f6 {[%clk 0:00:50]}  Nd6 {[%clk 0:00:37]} 28. Be6+ {[%clk 0:00:49]}  Rf7 {[%clk 0:00:37]} 29. Rh1 {[%clk 0:00:47]}  a5 {[%clk 0:00:32]} 30. Bd2 {[%clk 0:00:34]}  a4 {[%clk 0:00:31]} 31. Bxf7+ {[%clk 0:00:10]}  Qxf7 {[%clk 0:00:30]} 32. Rhe1 {[%clk 0:00:06]}  axb3 {[%clk 0:00:30]} 33. axb3 {[%clk 0:00:07]}  Ra2 {[%clk 0:00:30]} 34. Re2 {[%clk 0:00:07]}  Bc6 {[%clk 0:00:28]} 35. Be1 {[%clk 0:00:08]}  Qb7 {[%clk 0:00:28]} 36. Rxa2 {[%clk 0:00:08]}  Nxe4 {[%clk 0:00:26]} 37. Ra7 {[%clk 0:00:06]}  Qxa7 {[%clk 0:00:24]} 38. Nxe4 {[%clk 0:00:05]}  Qa2+ {[%clk 0:00:22]} 39. Kg3 {[%clk 0:00:04]}  Qxb1 {[%clk 0:00:23]} 40. f7+ {[%clk 0:00:05]}  Kf8 {[%clk 0:00:23]} 41. Qf6 {[%clk 0:00:03]}  Qxe4 {[%clk 0:00:22]} 0-1


[Site "https://www.chess.com"]

[Event "Titled Tuesday Blitz April 12 Early 2022"]
[White "Przybylski, Wojciech"]
[Black "Uzuner, Tufan Can"]
[WhiteFideId "1117599"]
[BlackFideId "6300499"]
[WhiteElo "2133"]
[BlackElo "2135"]
[Result "0-1"]
[Round "07"]
[TimeControl "180+1"]
[Date "2022.04.13"]
[WhiteClock "0:00:03"]
[BlackClock "0:00:22"]

1. d4 {[%clk 0:03:00]}  Nf6 {[%clk 0:02:55]} 2. c4 {[%clk 0:02:59]}  e6 {[%clk 0:02:56]} 3. Bg5 {[%clk 0:02:58]}  h6 {[%clk 0:02:52]} 4. Bd2 {[%clk 0:02:55]}  d5 {[%clk 0:02:51]} 5. e3 {[%clk 0:02:54]}  c5 {[%clk 0:02:49]} 6. cxd5 {[%clk 0:02:53]}  cxd4 {[%clk 0:02:45]} 7. exd4 {[%clk 0:02:42]}  Nxd5 {[%clk 0:02:44]} 8. Nf3 {[%clk 0:02:42]}  Nc6 {[%clk 0:02:44]} 9. Nc3 {[%clk 0:02:41]}  Be7 {[%clk 0:02:40]} 10. Bd3 {[%clk 0:02:40]}  Bf6 {[%clk 0:02:30]} 11. O-O {[%clk 0:02:33]}  a6 {[%clk 0:02:26]} 12. Re1 {[%clk 0:02:26]}  O-O {[%clk 0:02:25]} 13. Re4 {[%clk 0:02:13]}  b5 {[%clk 0:02:20]} 14. Rc1 {[%clk 0:02:02]}  Bb7 {[%clk 0:02:17]} 15. Rg4 {[%clk 0:01:44]}  h5 {[%clk 0:02:13]} 16. Rg3 {[%clk 0:01:43]}  Nxd4 {[%clk 0:02:04]} 17. Nxd4 {[%clk 0:01:39]}  Bxd4 {[%clk 0:02:05]} 18. Qxh5 {[%clk 0:01:34]}  f5 {[%clk 0:01:41]} 19. Ne2 {[%clk 0:00:54]}  Bxb2 {[%clk 0:01:25]} 20. Rd1 {[%clk 0:00:54]}  Qe8 {[%clk 0:01:23]} 21. Qh3 {[%clk 0:00:36]}  Qf7 {[%clk 0:01:13]} 22. Nf4 {[%clk 0:00:17]}  Nxf4 {[%clk 0:01:10]} 23. Bxf4 {[%clk 0:00:18]}  Rfd8 {[%clk 0:00:55]} 24. Rb1 {[%clk 0:00:08]}  Bf6 {[%clk 0:00:50]} 25. Bc2 {[%clk 0:00:08]}  Rac8 {[%clk 0:00:49]} 26. Bb3 {[%clk 0:00:08]}  Bd5 {[%clk 0:00:48]} 27. Rd3 {[%clk 0:00:05]}  Bxb3 {[%clk 0:00:41]} 28. axb3 {[%clk 0:00:05]}  Rxd3 {[%clk 0:00:41]} 29. Qxd3 {[%clk 0:00:04]}  Rd8 {[%clk 0:00:41]} 30. Qe2 {[%clk 0:00:04]}  Qd7 {[%clk 0:00:40]} 31. h3 {[%clk 0:00:03]}  Kf7 {[%clk 0:00:39]} 32. Kh2 {[%clk 0:00:03]}  Qd3 {[%clk 0:00:35]} 33. Qa2 {[%clk 0:00:03]}  Rd7 {[%clk 0:00:29]} 34. Be3 {[%clk 0:00:03]}  Be5+ {[%clk 0:00:28]} 35. g3 {[%clk 0:00:03]}  f4 {[%clk 0:00:27]} 36. gxf4 {[%clk 0:00:03]}  Bf6 {[%clk 0:00:23]} 37. Rg1 {[%clk 0:00:02]}  Qf5 {[%clk 0:00:23]} 38. Qb2 {[%clk 0:00:03]}  Bxb2 {[%clk 0:00:22]} 0-1


[Site "https://www.chess.com"]

[Event "Titled Tuesday Blitz April 12 Early 2022"]
[White "Raahul V S"]
[Black "Atakhan, Abtin"]
[WhiteFideId "25035525"]
[BlackFideId "22502203"]
[WhiteElo "2408"]
[BlackElo "2738"]
[Result "0-1"]
[Round "07"]
[TimeControl "180+1"]
[Date "2022.04.13"]
[WhiteClock "0:01:05"]
[BlackClock "0:01:06"]

1. c4 {[%clk 0:03:00]}  Nf6 {[%clk 0:02:57]} 2. Nc3 {[%clk 0:03:00]}  c5 {[%clk 0:02:58]} 3. Nf3 {[%clk 0:03:00]}  Nc6 {[%clk 0:02:58]} 4. d4 {[%clk 0:02:59]}  cxd4 {[%clk 0:02:58]} 5. Nxd4 {[%clk 0:03:00]}  e6 {[%clk 0:02:57]} 6. a3 {[%clk 0:03:00]}  Bc5 {[%clk 0:02:52]} 7. Nb3 {[%clk 0:02:59]}  Bb6 {[%clk 0:02:50]} 8. e4 {[%clk 0:02:58]}  O-O {[%clk 0:02:46]} 9. Be2 {[%clk 0:02:55]}  Bc7 {[%clk 0:02:29]} 10. O-O {[%clk 0:02:53]}  b6 {[%clk 0:02:23]} 11. f4 {[%clk 0:02:51]}  d6 {[%clk 0:02:13]} 12. Bf3 {[%clk 0:02:46]}  Bb7 {[%clk 0:02:12]} 13. Be3 {[%clk 0:02:42]}  Rc8 {[%clk 0:02:00]} 14. Rc1 {[%clk 0:02:32]}  Qe7 {[%clk 0:01:59]} 15. Qe2 {[%clk 0:02:21]}  Bb8 {[%clk 0:01:59]} 16. Rfd1 {[%clk 0:02:19]}  Rfd8 {[%clk 0:01:59]} 17. g4 {[%clk 0:02:08]}  Nd7 {[%clk 0:01:34]} 18. Nd2 {[%clk 0:01:57]}  Nf8 {[%clk 0:01:23]} 19. Qf2 {[%clk 0:01:49]}  Na5 {[%clk 0:01:21]} 20. Nb5 {[%clk 0:01:32]}  Ba6 {[%clk 0:01:20]} 21. b4 {[%clk 0:01:29]}  Nxc4 {[%clk 0:01:19]} 22. Nxa7 {[%clk 0:01:06]}  Bxa7 {[%clk 0:01:09]} 23. Be2 {[%clk 0:01:05]}  Nxe3 {[%clk 0:01:08]} 24. Qxe3 {[%clk 0:01:05]}  b5 {[%clk 0:01:06]} 0-1


[Site "https://www.chess.com"]

[Event "Titled Tuesday Blitz April 12 Early 2022"]
[White "Rudykh, Stepan"]
[Black "Lewtak, Damian"]
[WhiteFideId "4180321"]
[BlackFideId "1141724"]
[WhiteElo "2175"]
[BlackElo "2362"]
[Result "0-1"]
[Round "07"]
[TimeControl "180+1"]
[Date "2022.04.13"]
[WhiteClock "0:01:28"]
[BlackClock "0:02:39"]

1. e4 {[%clk 0:03:00]}  c5 {[%clk 0:02:56]} 2. Nf3 {[%clk 0:03:01]}  d6 {[%clk 0:02:56]} 3. d4 {[%clk 0:03:01]}  cxd4 {[%clk 0:02:57]} 4. Nxd4 {[%clk 0:03:02]}  Nf6 {[%clk 0:02:57]} 5. Nc3 {[%clk 0:03:02]}  Nc6 {[%clk 0:02:57]} 6. Bg5 {[%clk 0:03:01]}  e6 {[%clk 0:02:57]} 7. Qd2 {[%clk 0:03:00]}  a6 {[%clk 0:02:57]} 8. O-O-O {[%clk 0:02:54]}  Bd7 {[%clk 0:02:57]} 9. f4 {[%clk 0:02:51]}  b5 {[%clk 0:02:56]} 10. Nxc6 {[%clk 0:02:43]}  Bxc6 {[%clk 0:02:55]} 11. e5 {[%clk 0:02:43]}  dxe5 {[%clk 0:02:54]} 12. Qxd8+ {[%clk 0:02:39]}  Rxd8 {[%clk 0:02:55]} 13. Rxd8+ {[%clk 0:02:39]}  Kxd8 {[%clk 0:02:56]} 14. fxe5 {[%clk 0:02:38]}  h6 {[%clk 0:02:57]} 15. Bh4 {[%clk 0:02:33]}  g5 {[%clk 0:02:57]} 16. Bg3 {[%clk 0:02:11]}  Nd7 {[%clk 0:02:55]} 17. h4 {[%clk 0:02:01]}  Bg7 {[%clk 0:02:52]} 18. Rh2 {[%clk 0:01:44]}  Nxe5 {[%clk 0:02:45]} 19. Be2 {[%clk 0:01:43]}  Ke7 {[%clk 0:02:38]} 20. hxg5 {[%clk 0:01:29]}  hxg5 {[%clk 0:02:37]} 21. Rxh8 {[%clk 0:01:28]}  Bxh8 {[%clk 0:02:38]} 22. Bxe5 {[%clk 0:01:26]}  Bxe5 {[%clk 0:02:38]} 23. Bf3 {[%clk 0:01:27]}  Bxf3 {[%clk 0:02:37]} 24. gxf3 {[%clk 0:01:27]}  Bxc3 {[%clk 0:02:38]} 25. bxc3 {[%clk 0:01:28]}  Kd6 {[%clk 0:02:39]} 0-1


[Site "https://www.chess.com"]

[Event "Titled Tuesday Blitz April 12 Early 2022"]
[White "Sadilek, Peter"]
[Black "Mickiewicz, Piotr"]
[WhiteFideId "1616439"]
[BlackFideId "1114891"]
[WhiteElo "2145"]
[BlackElo "2266"]
[Result "0-1"]
[Round "07"]
[TimeControl "180+1"]
[Date "2022.04.13"]
[WhiteClock "0:00:54"]
[BlackClock "0:00:43"]

1. Nf3 {[%clk 0:02:50]}  Nf6 {[%clk 0:02:57]} 2. c4 {[%clk 0:02:49]}  g6 {[%clk 0:02:58]} 3. Nc3 {[%clk 0:02:49]}  Bg7 {[%clk 0:02:59]} 4. e4 {[%clk 0:02:49]}  O-O {[%clk 0:02:59]} 5. d4 {[%clk 0:02:50]}  d6 {[%clk 0:02:59]} 6. Be2 {[%clk 0:02:50]}  e5 {[%clk 0:02:57]} 7. d5 {[%clk 0:02:47]}  a5 {[%clk 0:02:55]} 8. Bg5 {[%clk 0:02:47]}  h6 {[%clk 0:02:53]} 9. Bh4 {[%clk 0:02:48]}  Na6 {[%clk 0:02:52]} 10. Nd2 {[%clk 0:02:48]}  Qe8 {[%clk 0:02:49]} 11. O-O {[%clk 0:02:48]}  Nh7 {[%clk 0:02:46]} 12. a3 {[%clk 0:02:42]}  Bd7 {[%clk 0:02:41]} 13. b4 {[%clk 0:02:40]}  axb4 {[%clk 0:02:39]} 14. axb4 {[%clk 0:02:41]}  Nxb4 {[%clk 0:02:37]} 15. Qb3 {[%clk 0:02:42]}  Na6 {[%clk 0:01:27]} 16. Qxb7 {[%clk 0:02:39]}  Qc8 {[%clk 0:01:19]} 17. Qxc8 {[%clk 0:02:35]}  Rfxc8 {[%clk 0:01:17]} 18. f3 {[%clk 0:02:24]}  h5 {[%clk 0:01:16]} 19. Bf2 {[%clk 0:02:22]}  Bh6 {[%clk 0:01:16]} 20. Nb3 {[%clk 0:02:23]}  Nb4 {[%clk 0:01:12]} 21. c5 {[%clk 0:02:19]}  Nc2 {[%clk 0:01:08]} 22. Rxa8 {[%clk 0:02:17]}  Rxa8 {[%clk 0:01:08]} 23. c6 {[%clk 0:02:14]}  Bc8 {[%clk 0:01:07]} 24. Rc1 {[%clk 0:02:10]}  Bxc1 {[%clk 0:01:04]} 25. Nxc1 {[%clk 0:02:09]}  Ra1 {[%clk 0:01:03]} 26. Na2 {[%clk 0:02:07]}  Nb4 {[%clk 0:01:01]} 27. Nxb4 {[%clk 0:02:04]}  Rxc1+ {[%clk 0:01:01]} 28. Bf1 {[%clk 0:02:04]}  Rb1 {[%clk 0:01:00]} 29. Nc2 {[%clk 0:01:54]}  Ba6 {[%clk 0:00:56]} 30. Ne1 {[%clk 0:01:55]}  Bxf1 {[%clk 0:00:53]} 31. Kxf1 {[%clk 0:01:56]}  Nf6 {[%clk 0:00:53]} 32. Ba7 {[%clk 0:01:39]}  Ne8 {[%clk 0:00:51]} 33. Kf2 {[%clk 0:01:37]}  Rb2+ {[%clk 0:00:50]} 34. Kg3 {[%clk 0:01:34]}  Ra2 {[%clk 0:00:51]} 35. Bf2 {[%clk 0:01:32]}  f5 {[%clk 0:00:50]} 36. exf5 {[%clk 0:01:31]}  gxf5 {[%clk 0:00:50]} 37. Nd3 {[%clk 0:01:27]}  f4+ {[%clk 0:00:47]} 38. Kh4 {[%clk 0:01:25]}  Rd2 {[%clk 0:00:47]} 39. Nxe5 {[%clk 0:01:03]}  dxe5 {[%clk 0:00:46]} 40. Bc5 {[%clk 0:01:01]}  Rxg2 {[%clk 0:00:45]} 41. Kxh5 {[%clk 0:00:57]}  Kf7 {[%clk 0:00:44]} 42. h4 {[%clk 0:00:56]}  Rg3 {[%clk 0:00:43]} 43. d6 {[%clk 0:00:54]}  Nf6+ {[%clk 0:00:42]} 44. Kh6 {[%clk 0:00:54]}  Rg6# {[%clk 0:00:43]} 0-1


[Site "https://www.chess.com"]

[Event "Titled Tuesday Blitz April 12 Early 2022"]
[White "Sarana, Alexey"]
[Black "Bortnyk, Olexandr"]
[WhiteFideId "24133795"]
[BlackFideId "14120828"]
[WhiteElo "2666"]
[BlackElo "2723"]
[Result "1/2-1/2"]
[Round "07"]
[TimeControl "180+1"]
[Date "2022.04.12"]
[WhiteClock "0:00:07"]
[BlackClock "0:00:02"]

1. d4 {[%clk 0:03:00]}  d6 {[%clk 0:02:59]} 2. e4 {[%clk 0:03:01]}  Nf6 {[%clk 0:03:00]} 3. Nc3 {[%clk 0:03:02]}  Nbd7 {[%clk 0:03:00]} 4. Nf3 {[%clk 0:02:58]}  e5 {[%clk 0:03:01]} 5. Bc4 {[%clk 0:02:59]}  Be7 {[%clk 0:03:01]} 6. O-O {[%clk 0:02:58]}  c6 {[%clk 0:03:01]} 7. a4 {[%clk 0:02:58]}  h6 {[%clk 0:03:02]} 8. Re1 {[%clk 0:02:54]}  Qc7 {[%clk 0:03:03]} 9. h3 {[%clk 0:02:55]}  g5 {[%clk 0:03:03]} 10. d5 {[%clk 0:02:52]}  Nf8 {[%clk 0:03:01]} 11. Nh2 {[%clk 0:02:48]}  Ng6 {[%clk 0:03:01]} 12. Nf1 {[%clk 0:02:46]}  g4 {[%clk 0:03:00]} 13. hxg4 {[%clk 0:02:44]}  Bxg4 {[%clk 0:03:00]} 14. f3 {[%clk 0:02:45]}  Bd7 {[%clk 0:02:59]} 15. Ng3 {[%clk 0:02:45]}  Nh4 {[%clk 0:02:37]} 16. dxc6 {[%clk 0:02:41]}  bxc6 {[%clk 0:02:35]} 17. Be3 {[%clk 0:02:28]}  Rg8 {[%clk 0:02:33]} 18. Nce2 {[%clk 0:02:24]}  Bh3 {[%clk 0:01:50]} 19. gxh3 {[%clk 0:02:19]}  Qd7 {[%clk 0:01:51]} 20. Kh2 {[%clk 0:01:37]}  Nxf3+ {[%clk 0:01:49]} 21. Kg2 {[%clk 0:01:38]}  Nh4+ {[%clk 0:01:31]} 22. Kh2 {[%clk 0:01:38]}  Nf3+ {[%clk 0:01:09]} 23. Kg2 {[%clk 0:01:38]}  Nxe1+ {[%clk 0:01:09]} 24. Qxe1 {[%clk 0:01:39]}  Nxe4 {[%clk 0:01:10]} 25. Bd3 {[%clk 0:01:35]}  Nxg3 {[%clk 0:01:07]} 26. Nxg3 {[%clk 0:01:36]}  f5 {[%clk 0:01:00]} 27. Kh2 {[%clk 0:01:29]}  f4 {[%clk 0:00:44]} 28. Bxf4 {[%clk 0:00:41]}  exf4 {[%clk 0:00:45]} 29. Nf5 {[%clk 0:00:42]}  Rg5 {[%clk 0:00:25]} 30. Qe4 {[%clk 0:00:35]}  Kf8 {[%clk 0:00:19]} 31. Rf1 {[%clk 0:00:29]}  Bf6 {[%clk 0:00:18]} 32. Nd4 {[%clk 0:00:23]}  Be5 {[%clk 0:00:14]} 33. Nf3 {[%clk 0:00:19]}  Rg3 {[%clk 0:00:14]} 34. Ng1 {[%clk 0:00:13]}  Qf7 {[%clk 0:00:07]} 35. Ne2 {[%clk 0:00:08]}  Re3 {[%clk 0:00:05]} 36. Qxc6 {[%clk 0:00:07]}  Rb8 {[%clk 0:00:03]} 37. Ng1 {[%clk 0:00:05]}  Rxb2 {[%clk 0:00:02]} 38. Kh1 {[%clk 0:00:05]}  Rb6 {[%clk 0:00:01]} 39. Qc8+ {[%clk 0:00:05]}  Kg7 {[%clk 0:00:02]} 40. Qg4+ {[%clk 0:00:05]}  Kf8 {[%clk 0:00:02]} 41. Nf3 {[%clk 0:00:05]}  d5 {[%clk 0:00:02]} 42. Nh4 {[%clk 0:00:06]}  Rf6 {[%clk 0:00:02]} 43. Qc8+ {[%clk 0:00:05]}  Qe8 {[%clk 0:00:01]} 44. Qg4 {[%clk 0:00:05]}  Kf7 {[%clk 0:00:01]} 45. Rg1 {[%clk 0:00:06]}  Ke7 {[%clk 0:00:01]} 46. Nf5+ {[%clk 0:00:05]}  Rxf5 {[%clk 0:00:01]} 47. Qxf5 {[%clk 0:00:06]}  Qd7 {[%clk 0:00:01]} 48. Qh7+ {[%clk 0:00:05]}  Kd6 {[%clk 0:00:02]} 49. Rg6+ {[%clk 0:00:06]}  Kc7 {[%clk 0:00:02]} 50. Rxh6 {[%clk 0:00:06]}  Re1+ {[%clk 0:00:02]} 51. Kg2 {[%clk 0:00:06]}  Qxh7 {[%clk 0:00:03]} 52. Rxh7+ {[%clk 0:00:06]}  Kb6 {[%clk 0:00:03]} 53. Rh6+ {[%clk 0:00:06]}  Kc5 {[%clk 0:00:04]} 54. Kf2 {[%clk 0:00:05]}  Re3 {[%clk 0:00:04]} 55. h4 {[%clk 0:00:06]}  Bd4 {[%clk 0:00:04]} 56. Kf1 {[%clk 0:00:04]}  Rh3 {[%clk 0:00:03]} 57. Kg2 {[%clk 0:00:04]}  Rg3+ {[%clk 0:00:03]} 58. Kh2 {[%clk 0:00:04]}  Be5 {[%clk 0:00:03]} 59. Re6 {[%clk 0:00:04]}  Kd4 {[%clk 0:00:03]} 60. h5 {[%clk 0:00:04]}  Rg5 {[%clk 0:00:03]} 61. h6 {[%clk 0:00:04]}  f3+ {[%clk 0:00:03]} 62. Kh3 {[%clk 0:00:05]}  f2 {[%clk 0:00:04]} 63. h7 {[%clk 0:00:04]}  Rh5+ {[%clk 0:00:04]} 64. Kg2 {[%clk 0:00:05]}  Rh2+ {[%clk 0:00:05]} 65. Kf1 {[%clk 0:00:05]}  a5 {[%clk 0:00:05]} 66. Bg6 {[%clk 0:00:04]}  Bg3 {[%clk 0:00:06]} 67. Ke2 {[%clk 0:00:03]}  Rh1 {[%clk 0:00:06]} 68. Rf6 {[%clk 0:00:04]}  Re1+ {[%clk 0:00:05]} 69. Kd2 {[%clk 0:00:03]}  Rh1 {[%clk 0:00:05]} 70. c3+ {[%clk 0:00:03]}  Ke5 {[%clk 0:00:05]} 71. Rf3 {[%clk 0:00:03]}  Ke6 {[%clk 0:00:03]} 72. Ke2 {[%clk 0:00:04]}  Re1+ {[%clk 0:00:03]} 73. Kd2 {[%clk 0:00:04]}  Rh1 {[%clk 0:00:03]} 74. Bd3 {[%clk 0:00:04]}  Rh2 {[%clk 0:00:03]} 75. Kd1 {[%clk 0:00:04]}  Be5 {[%clk 0:00:03]} 76. Re3 {[%clk 0:00:04]}  Kd6 {[%clk 0:00:03]} 77. Ke2 {[%clk 0:00:04]}  Bxc3 {[%clk 0:00:03]} 78. Rf3 {[%clk 0:00:03]}  Bd4 {[%clk 0:00:04]} 79. Rf4 {[%clk 0:00:03]}  Kc5 {[%clk 0:00:04]} 80. Rf5 {[%clk 0:00:03]}  Rh1 {[%clk 0:00:05]} 81. Kd2 {[%clk 0:00:03]}  Kb4 {[%clk 0:00:04]} 82. Rxd5 {[%clk 0:00:03]}  Bc3+ {[%clk 0:00:05]} 83. Kc2 {[%clk 0:00:04]}  f1=Q {[%clk 0:00:04]} 84. Rb5+ {[%clk 0:00:04]}  Kxa4 {[%clk 0:00:03]} 85. Bxf1 {[%clk 0:00:04]}  Rxf1 {[%clk 0:00:03]} 86. Kxc3 {[%clk 0:00:05]}  Rh1 {[%clk 0:00:04]} 87. Rb7 {[%clk 0:00:05]}  Rh3+ {[%clk 0:00:04]} 88. Kc2 {[%clk 0:00:05]}  Rh4 {[%clk 0:00:03]} 89. Rd7 {[%clk 0:00:03]}  Kb5 {[%clk 0:00:02]} 90. Kc3 {[%clk 0:00:03]}  Rh3+ {[%clk 0:00:02]} 91. Kc2 {[%clk 0:00:03]}  a4 {[%clk 0:00:03]} 92. Rd5+ {[%clk 0:00:03]}  Kc4 {[%clk 0:00:02]} 93. Rd7 {[%clk 0:00:04]}  Rh2+ {[%clk 0:00:03]} 94. Kb1 {[%clk 0:00:05]}  Kb3 {[%clk 0:00:02]} 95. Rb7+ {[%clk 0:00:05]}  Ka3 {[%clk 0:00:02]} 96. Kc1 {[%clk 0:00:06]}  Rh1+ {[%clk 0:00:02]} 97. Kc2 {[%clk 0:00:07]}  Ka2 {[%clk 0:00:02]} 98. Rb2+ {[%clk 0:00:06]}  Ka3 {[%clk 0:00:02]} 99. Rb7 {[%clk 0:00:06]}  Rh3 {[%clk 0:00:02]} 100. Kc1 {[%clk 0:00:06]}  Ka2 {[%clk 0:00:02]} 101. Rb2+ {[%clk 0:00:06]}  Ka3 {[%clk 0:00:02]} 102. Rb7 {[%clk 0:00:06]}  Rh6 {[%clk 0:00:02]} 103. Kb1 {[%clk 0:00:06]}  Rh1+ {[%clk 0:00:02]} 104. Kc2 {[%clk 0:00:07]} 1/2-1/2


[Site "https://www.chess.com"]

[Event "Titled Tuesday Blitz April 12 Early 2022"]
[White "Seo, Jung Min"]
[Black "Reprintsev, Alexander"]
[WhiteFideId "1734687"]
[BlackFideId "14100541"]
[WhiteElo "2705"]
[BlackElo "2554"]
[Result "1-0"]
[Round "07"]
[TimeControl "180+1"]
[Date "2022.04.13"]
[WhiteClock "0:00:07"]
[BlackClock "0:00:03"]

1. d4 {[%clk 0:03:00]}  d5 {[%clk 0:02:40]} 2. c4 {[%clk 0:03:00]}  e5 {[%clk 0:02:40]} 3. dxe5 {[%clk 0:02:59]}  d4 {[%clk 0:02:40]} 4. Nf3 {[%clk 0:02:59]}  Nc6 {[%clk 0:02:40]} 5. a3 {[%clk 0:02:59]}  g6 {[%clk 0:02:40]} 6. e3 {[%clk 0:02:57]}  Bg4 {[%clk 0:02:39]} 7. Be2 {[%clk 0:02:54]}  Bxf3 {[%clk 0:02:39]} 8. Bxf3 {[%clk 0:02:54]}  Nge7 {[%clk 0:02:40]} 9. O-O {[%clk 0:02:51]}  Bg7 {[%clk 0:02:40]} 10. exd4 {[%clk 0:02:50]}  Qxd4 {[%clk 0:02:39]} 11. Qxd4 {[%clk 0:02:38]}  Nxd4 {[%clk 0:02:39]} 12. Bxb7 {[%clk 0:02:35]}  Ne2+ {[%clk 0:02:39]} 13. Kh1 {[%clk 0:02:30]}  Rb8 {[%clk 0:02:40]} 14. Be4 {[%clk 0:02:05]}  Nxc1 {[%clk 0:02:38]} 15. Rxc1 {[%clk 0:02:04]}  Bxe5 {[%clk 0:02:38]} 16. Nd2 {[%clk 0:01:52]}  O-O {[%clk 0:02:25]} 17. Ra2 {[%clk 0:01:45]}  Bxb2 {[%clk 0:02:23]} 18. Rc2 {[%clk 0:01:45]}  Bd4 {[%clk 0:02:23]} 19. g3 {[%clk 0:01:37]}  Bxf2 {[%clk 0:02:21]} 20. Nf3 {[%clk 0:01:36]}  Bc5 {[%clk 0:02:20]} 21. Ne5 {[%clk 0:01:36]}  Rfd8 {[%clk 0:02:17]} 22. Nd3 {[%clk 0:01:36]}  Bd4 {[%clk 0:02:17]} 23. Nb4 {[%clk 0:01:36]}  c5 {[%clk 0:02:16]} 24. Nd5 {[%clk 0:01:36]}  Re8 {[%clk 0:01:53]} 25. Re2 {[%clk 0:01:28]}  Nf5 {[%clk 0:01:30]} 26. Bxf5 {[%clk 0:01:26]}  gxf5 {[%clk 0:01:30]} 27. Ne7+ {[%clk 0:01:25]}  Kf8 {[%clk 0:01:30]} 28. Nxf5 {[%clk 0:01:25]}  Rb1+ {[%clk 0:01:19]} 29. Kg2 {[%clk 0:01:25]}  Rg1+ {[%clk 0:01:19]} 30. Kh3 {[%clk 0:01:25]}  Rc1 {[%clk 0:01:11]} 31. Rxe8+ {[%clk 0:01:17]}  Kxe8 {[%clk 0:01:11]} 32. Rd2 {[%clk 0:01:17]}  Bg1 {[%clk 0:00:53]} 33. Kg2 {[%clk 0:01:12]}  a5 {[%clk 0:00:45]} 34. a4 {[%clk 0:01:07]}  f6 {[%clk 0:00:44]} 35. Rd5 {[%clk 0:00:59]}  Kf7 {[%clk 0:00:41]} 36. g4 {[%clk 0:00:59]}  Kg6 {[%clk 0:00:40]} 37. h4 {[%clk 0:00:56]}  h5 {[%clk 0:00:37]} 38. gxh5+ {[%clk 0:00:33]}  Kxh5 {[%clk 0:00:37]} 39. Kh3 {[%clk 0:00:29]}  Rc3+ {[%clk 0:00:24]} 40. Ng3+ {[%clk 0:00:19]}  Kh6 {[%clk 0:00:20]} 41. Kg2 {[%clk 0:00:19]}  Rc1 {[%clk 0:00:11]} 42. h5 {[%clk 0:00:18]}  Kh7 {[%clk 0:00:08]} 43. Nf5 {[%clk 0:00:17]}  Bd4 {[%clk 0:00:04]} 44. Rd7+ {[%clk 0:00:17]}  Kg8 {[%clk 0:00:03]} 45. h6 {[%clk 0:00:16]}  Rg1+ {[%clk 0:00:03]} 46. Kf3 {[%clk 0:00:13]}  Rh1 {[%clk 0:00:03]} 47. Rg7+ {[%clk 0:00:08]}  Kf8 {[%clk 0:00:03]} 48. h7 {[%clk 0:00:07]} 1-0


[Site "https://www.chess.com"]